[Event "January 2 Late 2024"]
[Site "https://www.chess.com"]
[Date "2024.01.02"]
[Round "8"]
[White "Vargas, Mauricio"]
[Black "Guevara Sanchez, Erick Marvin"]
[Result "0-1"]
[Board "173"]
[TimeControl "180+1"]
[WhiteFideId "4404572"]
[BlackFideId "6700136"]
[WhiteElo "1831"]
[BlackElo "2219"]
[WhiteTeam "COL"]
[BlackTeam "ESA"]
[WhiteClock "0:00:00"]
[BlackClock "0:00:36"]

1. e4 {[%clk 0:03:00]}  e6 {[%clk 0:02:59]} 2. f4 {[%clk 0:02:57]}  d5 {[%clk 0:02:59]} 3. Nc3 {[%clk 0:02:54]}  dxe4 {[%clk 0:02:49]} 4. Nxe4 {[%clk 0:02:54]}  e5 {[%clk 0:02:44]} 5. fxe5 {[%clk 0:02:42]}  Nc6 {[%clk 0:02:41]} 6. Nf3 {[%clk 0:02:41]}  Bg4 {[%clk 0:02:41]} 7. Bc4 {[%clk 0:02:24]}  Nxe5 {[%clk 0:02:26]} 8. Be2 {[%clk 0:02:06]}  Bxf3 {[%clk 0:02:20]} 9. Bxf3 {[%clk 0:02:05]}  Nf6 {[%clk 0:02:05]} 10. O-O {[%clk 0:02:00]}  Nxe4 {[%clk 0:01:55]} 11. Bxe4 {[%clk 0:01:58]}  Qd4+ {[%clk 0:01:54]} 12. Kh1 {[%clk 0:01:51]}  Qxe4 {[%clk 0:01:54]} 13. Re1 {[%clk 0:01:51]}  Qd5 {[%clk 0:01:53]} 14. d4 {[%clk 0:01:50]}  O-O-O {[%clk 0:01:50]} 15. Rxe5 {[%clk 0:01:20]}  Qxe5 {[%clk 0:01:49]} 16. Qg4+ {[%clk 0:01:17]}  Qe6 {[%clk 0:01:48]} 17. Qxe6+ {[%clk 0:01:09]}  fxe6 {[%clk 0:01:48]} 18. Be3 {[%clk 0:01:06]}  Be7 {[%clk 0:01:48]} 19. Re1 {[%clk 0:01:04]}  Bf6 {[%clk 0:01:47]} 20. c3 {[%clk 0:01:04]}  Rhe8 {[%clk 0:01:47]} 21. Bf4 {[%clk 0:01:04]}  e5 {[%clk 0:01:35]} 22. dxe5 {[%clk 0:01:02]}  Bxe5 {[%clk 0:01:33]} 23. Bxe5 {[%clk 0:00:53]}  Rd5 {[%clk 0:01:32]} 24. h3 {[%clk 0:00:45]}  Rdxe5 {[%clk 0:01:31]} 25. Rf1 {[%clk 0:00:45]}  Re2 {[%clk 0:01:28]} 26. b4 {[%clk 0:00:42]}  Rxa2 {[%clk 0:01:26]} 27. Rf7 {[%clk 0:00:40]}  Rg8 {[%clk 0:01:26]} 28. Kh2 {[%clk 0:00:34]}  Rc2 {[%clk 0:01:25]} 29. Rf3 {[%clk 0:00:33]}  b6 {[%clk 0:01:21]} 30. Kg3 {[%clk 0:00:34]}  Rf8 {[%clk 0:01:18]} 31. Rxf8+ {[%clk 0:00:31]}  Kb7 {[%clk 0:01:17]} 32. Rf3 {[%clk 0:00:31]}  a5 {[%clk 0:01:17]} 33. bxa5 {[%clk 0:00:30]}  bxa5 {[%clk 0:01:16]} 34. Kf4 {[%clk 0:00:30]}  a4 {[%clk 0:01:14]} 35. Ke4 {[%clk 0:00:29]}  Rxg2 {[%clk 0:01:14]} 36. c4 {[%clk 0:00:24]}  Rg6 {[%clk 0:01:06]} 37. Ra3 {[%clk 0:00:23]}  Ra6 {[%clk 0:01:05]} 38. Kd4 {[%clk 0:00:22]}  Kc6 {[%clk 0:01:03]} 39. Kc3 {[%clk 0:00:19]}  Kc5 {[%clk 0:01:03]} 40. Ra2 {[%clk 0:00:17]}  a3 {[%clk 0:01:02]} 41. h4 {[%clk 0:00:15]}  Rg6 {[%clk 0:00:58]} 42. Kb3 {[%clk 0:00:15]}  Rg3+ {[%clk 0:00:57]} 43. Ka4 {[%clk 0:00:14]}  Kxc4 {[%clk 0:00:57]} 44. Rc2+ {[%clk 0:00:13]}  Rc3 {[%clk 0:00:56]} 45. Ra2 {[%clk 0:00:12]}  h6 {[%clk 0:00:55]} 46. h5 {[%clk 0:00:11]}  Rh3 {[%clk 0:00:54]} 47. Rc2+ {[%clk 0:00:11]}  Rc3 {[%clk 0:00:48]} 48. Ra2 {[%clk 0:00:10]}  Kd3 {[%clk 0:00:46]} 49. Rh2 {[%clk 0:00:07]}  Ke4 {[%clk 0:00:44]} 50. Ra2 {[%clk 0:00:05]}  Kf5 {[%clk 0:00:43]} 51. Rg2 {[%clk 0:00:03]}  c5 {[%clk 0:00:37]} 52. Rf2+ {[%clk 0:00:00]}  Kg5 {[%clk 0:00:36]} 0-1

[Event "January 2 Late 2024"]
[Site "https://www.chess.com"]
[Date "2024.01.02"]
[Round "8"]
[White "Jose Iraeta, Alejandro"]
[Black "Gulamirian, Korun"]
[Result "1-0"]
[Board "174"]
[TimeControl "180+1"]
[WhiteFideId "2226537"]
[BlackFideId "4144899"]
[WhiteElo "2203"]
[BlackElo "1601"]
[WhiteTeam "ESP"]
[BlackTeam "RUS"]
[WhiteClock "0:00:47"]
[BlackClock "0:00:00"]

1. e4 {[%clk 0:02:59]}  e5 {[%clk 0:02:59]} 2. Nf3 {[%clk 0:02:59]}  Nc6 {[%clk 0:02:58]} 3. Bb5 {[%clk 0:02:59]}  a6 {[%clk 0:02:57]} 4. Ba4 {[%clk 0:02:58]}  Nf6 {[%clk 0:02:57]} 5. O-O {[%clk 0:02:58]}  Be7 {[%clk 0:02:57]} 6. d3 {[%clk 0:02:57]}  d6 {[%clk 0:02:53]} 7. h3 {[%clk 0:02:56]}  b5 {[%clk 0:02:52]} 8. Bb3 {[%clk 0:02:56]}  O-O {[%clk 0:02:51]} 9. c3 {[%clk 0:02:57]}  Be6 {[%clk 0:02:50]} 10. Bc2 {[%clk 0:02:57]}  Qd7 {[%clk 0:02:50]} 11. Re1 {[%clk 0:02:56]}  Bxh3 {[%clk 0:02:49]} 12. gxh3 {[%clk 0:02:57]}  Qxh3 {[%clk 0:02:48]} 13. Nh2 {[%clk 0:02:56]}  h5 {[%clk 0:02:34]} 14. Qf3 {[%clk 0:02:56]}  Qe6 {[%clk 0:02:30]} 15. Nd2 {[%clk 0:02:50]}  g6 {[%clk 0:02:29]} 16. Ndf1 {[%clk 0:02:50]}  Kg7 {[%clk 0:02:29]} 17. Be3 {[%clk 0:02:49]}  Rh8 {[%clk 0:02:28]} 18. Bb3 {[%clk 0:02:44]}  Qd7 {[%clk 0:02:20]} 19. d4 {[%clk 0:02:34]}  Na5 {[%clk 0:02:18]} 20. Bc2 {[%clk 0:02:26]}  Ng4 {[%clk 0:02:14]} 21. b3 {[%clk 0:02:14]}  Rh7 {[%clk 0:02:11]} 22. Rad1 {[%clk 0:02:12]}  Qe6 {[%clk 0:02:01]} 23. d5 {[%clk 0:02:07]}  Qd7 {[%clk 0:02:00]} 24. Ng3 {[%clk 0:02:01]}  Rah8 {[%clk 0:01:42]} 25. Ngf1 {[%clk 0:01:47]}  Nb7 {[%clk 0:01:09]} 26. Bd2 {[%clk 0:01:42]}  Nd8 {[%clk 0:00:45]} 27. Ne3 {[%clk 0:01:09]}  Nxh2 {[%clk 0:00:41]} 28. Kxh2 {[%clk 0:01:08]}  f6 {[%clk 0:00:40]} 29. Rg1 {[%clk 0:01:03]}  Kf7 {[%clk 0:00:24]} 30. Ng2 {[%clk 0:01:02]}  Qg4 {[%clk 0:00:19]} 31. Qd3 {[%clk 0:00:54]}  f5 {[%clk 0:00:16]} 32. exf5 {[%clk 0:00:53]}  g5 {[%clk 0:00:16]} 33. f6 {[%clk 0:00:52]}  Bxf6 {[%clk 0:00:12]} 34. Qg6+ {[%clk 0:00:52]}  Ke7 {[%clk 0:00:12]} 35. f3 {[%clk 0:00:51]}  Qd7 {[%clk 0:00:04]} 36. Ne3 {[%clk 0:00:48]}  Nf7 {[%clk 0:00:03]} 37. Nf5+ {[%clk 0:00:46]}  Ke8 {[%clk 0:00:00]} 38. Qxf6 {[%clk 0:00:47]} 1-0

[Event "January 2 Late 2024"]
[Site "https://www.chess.com"]
[Date "2024.01.02"]
[Round "9"]
[White "Le, Tuan Minh"]
[Black "Nakamura, Hikaru"]
[Result "0-1"]
[Board "1"]
[TimeControl "180+1"]
[WhiteFideId "12401153"]
[BlackFideId "2016192"]
[WhiteElo "3036"]
[BlackElo "3280"]
[WhiteTeam "VIE"]
[BlackTeam "USA"]
[WhiteClock "0:00:00"]
[BlackClock "0:00:09"]

1. d4 {[%clk 0:02:59]}  g6 {[%clk 0:02:57]} 2. e4 {[%clk 0:02:59]}  Bg7 {[%clk 0:02:56]} 3. Nf3 {[%clk 0:02:59]}  d5 {[%clk 0:02:54]} 4. exd5 {[%clk 0:02:58]}  Qxd5 {[%clk 0:02:55]} 5. Be2 {[%clk 0:02:50]}  Nf6 {[%clk 0:02:53]} 6. O-O {[%clk 0:02:49]}  O-O {[%clk 0:02:54]} 7. c4 {[%clk 0:02:50]}  Qd6 {[%clk 0:02:53]} 8. h3 {[%clk 0:02:47]}  b6 {[%clk 0:02:52]} 9. Nc3 {[%clk 0:02:47]}  Bb7 {[%clk 0:02:52]} 10. Be3 {[%clk 0:02:47]}  a6 {[%clk 0:02:50]} 11. Qc2 {[%clk 0:02:47]}  e6 {[%clk 0:02:48]} 12. Rac1 {[%clk 0:02:46]}  Nbd7 {[%clk 0:02:47]} 13. Rfd1 {[%clk 0:02:47]}  Qe7 {[%clk 0:02:47]} 14. a3 {[%clk 0:02:32]}  c5 {[%clk 0:02:37]} 15. dxc5 {[%clk 0:02:29]}  bxc5 {[%clk 0:02:36]} 16. b4 {[%clk 0:02:28]}  Rfc8 {[%clk 0:02:34]} 17. Qb3 {[%clk 0:02:21]}  Ne8 {[%clk 0:02:21]} 18. Na4 {[%clk 0:02:05]}  cxb4 {[%clk 0:02:18]} 19. axb4 {[%clk 0:02:04]}  Rab8 {[%clk 0:02:11]} 20. Rxd7 {[%clk 0:01:49]}  Qxd7 {[%clk 0:02:11]} 21. Nb6 {[%clk 0:01:49]}  Qc7 {[%clk 0:02:03]} 22. Nxc8 {[%clk 0:01:50]}  Rxc8 {[%clk 0:01:58]} 23. b5 {[%clk 0:01:49]}  axb5 {[%clk 0:01:56]} 24. cxb5 {[%clk 0:01:46]}  Qb8 {[%clk 0:01:56]} 25. Rxc8 {[%clk 0:01:43]}  Qxc8 {[%clk 0:01:57]} 26. b6 {[%clk 0:01:42]}  Nd6 {[%clk 0:01:53]} 27. Qb4 {[%clk 0:01:20]}  Ne4 {[%clk 0:01:35]} 28. Nd4 {[%clk 0:01:07]}  Bf8 {[%clk 0:01:26]} 29. Qb2 {[%clk 0:01:07]}  Nd6 {[%clk 0:01:11]} 30. Qb3 {[%clk 0:00:46]}  Bd5 {[%clk 0:01:05]} 31. Qc2 {[%clk 0:00:42]}  Qb7 {[%clk 0:00:58]} 32. Nf3 {[%clk 0:00:37]}  Nf5 {[%clk 0:00:55]} 33. Qd2 {[%clk 0:00:21]}  Nxe3 {[%clk 0:00:52]} 34. Qxe3 {[%clk 0:00:21]}  Be7 {[%clk 0:00:52]} 35. Ne1 {[%clk 0:00:15]}  Bd8 {[%clk 0:00:44]} 36. Bf3 {[%clk 0:00:16]}  Bxf3 {[%clk 0:00:43]} 37. Nxf3 {[%clk 0:00:16]}  Bxb6 {[%clk 0:00:43]} 38. Qe2 {[%clk 0:00:17]}  Qc7 {[%clk 0:00:42]} 39. Nh2 {[%clk 0:00:16]}  h5 {[%clk 0:00:39]} 40. Nf1 {[%clk 0:00:17]}  h4 {[%clk 0:00:39]} 41. Qg4 {[%clk 0:00:15]}  Qe7 {[%clk 0:00:39]} 42. Nd2 {[%clk 0:00:15]}  Qf6 {[%clk 0:00:38]} 43. Qe2 {[%clk 0:00:12]}  Qb2 {[%clk 0:00:37]} 44. Qd1 {[%clk 0:00:13]}  Qa2 {[%clk 0:00:24]} 45. Ne4 {[%clk 0:00:12]}  Kg7 {[%clk 0:00:15]} 46. Qe1 {[%clk 0:00:11]}  Bd4 {[%clk 0:00:15]} 47. Ng5 {[%clk 0:00:10]}  Bf6 {[%clk 0:00:13]} 48. Nf3 {[%clk 0:00:11]}  Qd5 {[%clk 0:00:12]} 49. Nh2 {[%clk 0:00:11]}  Bd4 {[%clk 0:00:11]} 50. Nf3 {[%clk 0:00:11]}  Bf6 {[%clk 0:00:12]} 51. Nh2 {[%clk 0:00:12]}  Qc4 {[%clk 0:00:11]} 52. Nf3 {[%clk 0:00:12]}  g5 {[%clk 0:00:09]} 53. Nh2 {[%clk 0:00:12]}  Qc3 {[%clk 0:00:08]} 54. Qd1 {[%clk 0:00:12]}  Qa1 {[%clk 0:00:08]} 55. Qxa1 {[%clk 0:00:12]}  Bxa1 {[%clk 0:00:09]} 56. Kf1 {[%clk 0:00:12]}  f5 {[%clk 0:00:08]} 57. Ke2 {[%clk 0:00:12]}  e5 {[%clk 0:00:08]} 58. Nf3 {[%clk 0:00:07]}  Kf6 {[%clk 0:00:07]} 59. Nd2 {[%clk 0:00:08]}  Bc3 {[%clk 0:00:07]} 60. Nc4 {[%clk 0:00:08]}  Bb4 {[%clk 0:00:07]} 61. f3 {[%clk 0:00:08]}  Ke6 {[%clk 0:00:07]} 62. Ne3 {[%clk 0:00:08]}  Bc5 {[%clk 0:00:07]} 63. Nc4 {[%clk 0:00:07]}  Kd5 {[%clk 0:00:08]} 64. Nd2 {[%clk 0:00:07]}  Bb6 {[%clk 0:00:08]} 65. Nb3 {[%clk 0:00:07]}  e4 {[%clk 0:00:08]} 66. fxe4+ {[%clk 0:00:06]}  Kxe4 {[%clk 0:00:08]} 67. Nd2+ {[%clk 0:00:06]}  Kf4 {[%clk 0:00:09]} 68. Nf3 {[%clk 0:00:06]}  Kg3 {[%clk 0:00:05]} 69. Kf1 {[%clk 0:00:05]}  Be3 {[%clk 0:00:03]} 70. Ne5 {[%clk 0:00:05]}  Kf4 {[%clk 0:00:04]} 71. Nd3+ {[%clk 0:00:05]}  Ke4 {[%clk 0:00:04]} 72. Ke2 {[%clk 0:00:06]}  g4 {[%clk 0:00:05]} 73. hxg4 {[%clk 0:00:06]}  fxg4 {[%clk 0:00:06]} 74. Ne1 {[%clk 0:00:05]}  Kf4 {[%clk 0:00:06]} 75. Nd3+ {[%clk 0:00:04]}  Ke4 {[%clk 0:00:07]} 76. Ne1 {[%clk 0:00:05]}  Bb6 {[%clk 0:00:07]} 77. Kf1 {[%clk 0:00:03]}  Ke3 {[%clk 0:00:07]} 78. Nc2+ {[%clk 0:00:03]}  Kf4 {[%clk 0:00:08]} 79. Nb4 {[%clk 0:00:03]}  Kg3 {[%clk 0:00:08]} 80. Nd5 {[%clk 0:00:04]}  h3 {[%clk 0:00:08]} 81. gxh3 {[%clk 0:00:00]}  gxh3 {[%clk 0:00:09]} 0-1

[Event "January 2 Late 2024"]
[Site "https://www.chess.com"]
[Date "2024.01.02"]
[Round "9"]
[White "Caruana, Fabiano"]
[Black "Radjabov, Teimour"]
[Result "1-0"]
[Board "2"]
[TimeControl "180+1"]
[WhiteFideId "2020009"]
[BlackFideId "13400924"]
[WhiteElo "3065"]
[BlackElo "3043"]
[WhiteTeam "USA"]
[BlackTeam "AZE"]
[WhiteClock "0:00:05"]
[BlackClock "0:00:00"]

1. d4 {[%clk 0:03:00]}  d5 {[%clk 0:02:59]} 2. c4 {[%clk 0:02:59]}  e6 {[%clk 0:02:59]} 3. Nc3 {[%clk 0:02:59]}  Nf6 {[%clk 0:02:58]} 4. cxd5 {[%clk 0:02:59]}  exd5 {[%clk 0:02:58]} 5. Bg5 {[%clk 0:02:59]}  c6 {[%clk 0:02:58]} 6. Qc2 {[%clk 0:02:59]}  Be7 {[%clk 0:02:14]} 7. e3 {[%clk 0:02:54]}  h6 {[%clk 0:02:13]} 8. Bh4 {[%clk 0:02:53]}  O-O {[%clk 0:02:10]} 9. Bd3 {[%clk 0:02:53]}  Re8 {[%clk 0:02:07]} 10. Nge2 {[%clk 0:02:53]}  Nbd7 {[%clk 0:02:05]} 11. O-O {[%clk 0:02:52]}  a5 {[%clk 0:02:02]} 12. a4 {[%clk 0:02:48]}  Nh5 {[%clk 0:01:59]} 13. Bxe7 {[%clk 0:02:46]}  Qxe7 {[%clk 0:02:00]} 14. Rae1 {[%clk 0:02:46]}  Nf8 {[%clk 0:01:55]} 15. Nc1 {[%clk 0:02:43]}  Qg5 {[%clk 0:01:47]} 16. f4 {[%clk 0:02:42]}  Qd8 {[%clk 0:01:46]} 17. Nb3 {[%clk 0:02:36]}  Nf6 {[%clk 0:01:46]} 18. h3 {[%clk 0:02:21]}  b6 {[%clk 0:01:45]} 19. Nd2 {[%clk 0:02:19]}  c5 {[%clk 0:01:33]} 20. Bb5 {[%clk 0:01:59]}  Bd7 {[%clk 0:01:29]} 21. Nf3 {[%clk 0:01:59]}  Bxb5 {[%clk 0:01:18]} 22. axb5 {[%clk 0:02:00]}  Rc8 {[%clk 0:01:15]} 23. Ne5 {[%clk 0:01:57]}  Qd6 {[%clk 0:01:15]} 24. Qd2 {[%clk 0:01:34]}  Ne6 {[%clk 0:01:13]} 25. Nc6 {[%clk 0:01:26]}  Nc7 {[%clk 0:01:09]} 26. dxc5 {[%clk 0:01:17]}  Qxc5 {[%clk 0:01:08]} 27. Nd4 {[%clk 0:01:17]}  Qb4 {[%clk 0:00:54]} 28. Rc1 {[%clk 0:01:09]}  Qd6 {[%clk 0:00:29]} 29. Rfd1 {[%clk 0:01:03]}  Qe7 {[%clk 0:00:25]} 30. Qf2 {[%clk 0:00:47]}  Qf8 {[%clk 0:00:18]} 31. Rc2 {[%clk 0:00:40]}  Ne6 {[%clk 0:00:17]} 32. Nc6 {[%clk 0:00:38]}  Nc7 {[%clk 0:00:13]} 33. Qe2 {[%clk 0:00:29]}  Ra8 {[%clk 0:00:14]} 34. Na4 {[%clk 0:00:27]}  Nd7 {[%clk 0:00:11]} 35. Nd4 {[%clk 0:00:23]}  Ne6 {[%clk 0:00:10]} 36. Nxe6 {[%clk 0:00:22]}  fxe6 {[%clk 0:00:10]} 37. Rc6 {[%clk 0:00:20]}  Rab8 {[%clk 0:00:08]} 38. Qd2 {[%clk 0:00:13]}  Qb4 {[%clk 0:00:04]} 39. Qxb4 {[%clk 0:00:14]}  axb4 {[%clk 0:00:04]} 40. e4 {[%clk 0:00:14]}  Nf6 {[%clk 0:00:03]} 41. e5 {[%clk 0:00:11]}  Ne4 {[%clk 0:00:02]} 42. Nxb6 {[%clk 0:00:11]}  Rb7 {[%clk 0:00:03]} 43. Ra1 {[%clk 0:00:11]}  d4 {[%clk 0:00:02]} 44. Rd1 {[%clk 0:00:08]}  Rd8 {[%clk 0:00:02]} 45. Kf1 {[%clk 0:00:04]}  d3 {[%clk 0:00:02]} 46. Ke1 {[%clk 0:00:04]}  d2+ {[%clk 0:00:02]} 47. Ke2 {[%clk 0:00:04]}  g5 {[%clk 0:00:02]} 48. Ke3 {[%clk 0:00:04]}  Ng3 {[%clk 0:00:01]} 49. fxg5 {[%clk 0:00:04]}  hxg5 {[%clk 0:00:01]} 50. Nc4 {[%clk 0:00:05]}  Nf5+ {[%clk 0:00:01]} 51. Kf2 {[%clk 0:00:03]}  Rxb5 {[%clk 0:00:02]} 52. Rxd2 {[%clk 0:00:04]}  Rxd2+ {[%clk 0:00:02]} 53. Nxd2 {[%clk 0:00:05]}  Rxe5 {[%clk 0:00:03]} 54. Nf3 {[%clk 0:00:05]}  Rd5 {[%clk 0:00:03]} 55. Nxg5 {[%clk 0:00:05]}  Nd4 {[%clk 0:00:03]} 56. Ra6 {[%clk 0:00:04]}  Rxg5 {[%clk 0:00:03]} 57. Rd6 {[%clk 0:00:03]}  e5 {[%clk 0:00:03]} 58. Rd5 {[%clk 0:00:03]}  Kf7 {[%clk 0:00:03]} 59. g4 {[%clk 0:00:03]}  Ke6 {[%clk 0:00:03]} 60. Ra5 {[%clk 0:00:04]}  Rg8 {[%clk 0:00:02]} 61. Kg3 {[%clk 0:00:05]}  b3 {[%clk 0:00:01]} 62. h4 {[%clk 0:00:05]}  Rc8 {[%clk 0:00:02]} 63. Ra6+ {[%clk 0:00:04]}  Kd5 {[%clk 0:00:00]} 64. h5 {[%clk 0:00:05]} 1-0

[Event "January 2 Late 2024"]
[Site "https://www.chess.com"]
[Date "2024.01.02"]
[Round "9"]
[White "Bortnyk, Olexandr"]
[Black "Nihal Sarin"]
[Result "0-1"]
[Board "4"]
[TimeControl "180+1"]
[WhiteFideId "14120828"]
[BlackFideId "25092340"]
[WhiteElo "3019"]
[BlackElo "3203"]
[WhiteTeam "UKR"]
[BlackTeam "IND"]
[WhiteClock "0:00:02"]
[BlackClock "0:00:05"]

1. e4 {[%clk 0:03:00]}  c5 {[%clk 0:02:59]} 2. c3 {[%clk 0:02:59]}  Qa5 {[%clk 0:02:53]} 3. Nf3 {[%clk 0:02:58]}  g6 {[%clk 0:02:51]} 4. Bc4 {[%clk 0:02:58]}  Bg7 {[%clk 0:02:50]} 5. O-O {[%clk 0:02:58]}  e6 {[%clk 0:02:33]} 6. d4 {[%clk 0:02:56]}  cxd4 {[%clk 0:02:29]} 7. cxd4 {[%clk 0:02:57]}  Ne7 {[%clk 0:02:29]} 8. Bg5 {[%clk 0:02:55]}  h6 {[%clk 0:02:28]} 9. Bxe7 {[%clk 0:02:55]}  Kxe7 {[%clk 0:02:29]} 10. Nc3 {[%clk 0:02:55]}  d6 {[%clk 0:02:21]} 11. Rc1 {[%clk 0:02:50]}  Bd7 {[%clk 0:02:21]} 12. Re1 {[%clk 0:02:48]}  Rc8 {[%clk 0:02:20]} 13. Bb3 {[%clk 0:02:44]}  Na6 {[%clk 0:02:19]} 14. Qd2 {[%clk 0:02:42]}  Kf8 {[%clk 0:02:11]} 15. h4 {[%clk 0:02:29]}  Rc7 {[%clk 0:02:08]} 16. Qf4 {[%clk 0:02:26]}  Qb4 {[%clk 0:02:08]} 17. e5 {[%clk 0:02:03]}  d5 {[%clk 0:01:59]} 18. Bxd5 {[%clk 0:02:03]}  exd5 {[%clk 0:01:59]} 19. e6 {[%clk 0:02:01]}  Bxe6 {[%clk 0:01:52]} 20. Rxe6 {[%clk 0:02:01]}  Qxb2 {[%clk 0:01:53]} 21. Rce1 {[%clk 0:00:38]}  Qxc3 {[%clk 0:01:27]} 22. Rxg6 {[%clk 0:00:37]}  Rc6 {[%clk 0:01:27]} 23. h5 {[%clk 0:00:34]}  Rxg6 {[%clk 0:00:54]} 24. hxg6 {[%clk 0:00:35]}  Qc7 {[%clk 0:00:54]} 25. Ne5 {[%clk 0:00:36]}  f6 {[%clk 0:00:24]} 26. Qf5 {[%clk 0:00:29]}  Rd8 {[%clk 0:00:24]} 27. Ng4 {[%clk 0:00:20]}  Qd7 {[%clk 0:00:22]} 28. Re6 {[%clk 0:00:19]}  Nc7 {[%clk 0:00:16]} 29. Rxf6+ {[%clk 0:00:19]}  Kg8 {[%clk 0:00:16]} 30. Qf4 {[%clk 0:00:16]}  Ne6 {[%clk 0:00:04]} 31. Nxh6+ {[%clk 0:00:16]}  Bxh6 {[%clk 0:00:04]} 32. Qxh6 {[%clk 0:00:17]}  Qg7 {[%clk 0:00:05]} 33. Qh4 {[%clk 0:00:16]}  Re8 {[%clk 0:00:05]} 34. g3 {[%clk 0:00:15]}  Nf8 {[%clk 0:00:05]} 35. Qg5 {[%clk 0:00:14]}  Re6 {[%clk 0:00:05]} 36. Rxe6 {[%clk 0:00:08]}  Nxe6 {[%clk 0:00:06]} 37. Qxd5 {[%clk 0:00:08]}  Qxg6 {[%clk 0:00:07]} 38. Qxb7 {[%clk 0:00:08]}  Qf7 {[%clk 0:00:08]} 39. Qb8+ {[%clk 0:00:06]}  Kh7 {[%clk 0:00:07]} 40. d5 {[%clk 0:00:05]}  Ng5 {[%clk 0:00:07]} 41. Qb1+ {[%clk 0:00:05]}  Kg7 {[%clk 0:00:06]} 42. Qb2+ {[%clk 0:00:05]}  Kg6 {[%clk 0:00:07]} 43. Qc2+ {[%clk 0:00:05]}  Qf5 {[%clk 0:00:07]} 44. Qc6+ {[%clk 0:00:05]}  Kh5 {[%clk 0:00:08]} 45. d6 {[%clk 0:00:05]}  Nf3+ {[%clk 0:00:08]} 46. Kg2 {[%clk 0:00:05]}  Ne5 {[%clk 0:00:08]} 47. Qd5 {[%clk 0:00:04]}  Kg6 {[%clk 0:00:09]} 48. a4 {[%clk 0:00:04]}  Nd7 {[%clk 0:00:08]} 49. Qb7 {[%clk 0:00:04]}  a5 {[%clk 0:00:08]} 50. Qc6 {[%clk 0:00:04]}  Kf6 {[%clk 0:00:08]} 51. Kg1 {[%clk 0:00:04]}  Ke6 {[%clk 0:00:08]} 52. Kg2 {[%clk 0:00:04]}  Qd5+ {[%clk 0:00:08]} 53. Qxd5+ {[%clk 0:00:03]}  Kxd5 {[%clk 0:00:09]} 54. f4 {[%clk 0:00:03]}  Kxd6 {[%clk 0:00:09]} 55. g4 {[%clk 0:00:04]}  Nc5 {[%clk 0:00:10]} 56. Kf3 {[%clk 0:00:05]}  Nxa4 {[%clk 0:00:10]} 57. Ke4 {[%clk 0:00:03]}  Nc5+ {[%clk 0:00:08]} 58. Kd4 {[%clk 0:00:03]}  Ne6+ {[%clk 0:00:06]} 59. Kc4 {[%clk 0:00:04]}  Kc6 {[%clk 0:00:07]} 60. f5 {[%clk 0:00:04]}  Ng5 {[%clk 0:00:07]} 61. f6 {[%clk 0:00:03]}  Nf7 {[%clk 0:00:07]} 62. Kd4 {[%clk 0:00:03]}  Kb5 {[%clk 0:00:06]} 63. Kd5 {[%clk 0:00:04]}  a4 {[%clk 0:00:06]} 64. Ke6 {[%clk 0:00:04]}  Ng5+ {[%clk 0:00:06]} 65. Kf5 {[%clk 0:00:05]}  Nh7 {[%clk 0:00:04]} 66. g5 {[%clk 0:00:05]}  a3 {[%clk 0:00:03]} 67. f7 {[%clk 0:00:02]}  a2 {[%clk 0:00:03]} 68. g6 {[%clk 0:00:03]}  a1=Q {[%clk 0:00:03]} 69. gxh7 {[%clk 0:00:03]}  Qg7 {[%clk 0:00:03]} 70. Ke6 {[%clk 0:00:04]}  Kc6 {[%clk 0:00:03]} 71. Ke7 {[%clk 0:00:02]}  Qe5+ {[%clk 0:00:04]} 72. Kf8 {[%clk 0:00:02]}  Qh8+ {[%clk 0:00:04]} 73. Ke7 {[%clk 0:00:03]}  Qxh7 {[%clk 0:00:05]} 74. Ke8 {[%clk 0:00:01]}  Qg7 {[%clk 0:00:05]} 75. f8=Q {[%clk 0:00:02]}  Qd7# {[%clk 0:00:05]} 0-1